[Event "Late-Titled-Tuesday-Blitz-September-05-2023"]
[Site "Chess.com"]
[Date "2023.09.05"]
[Round "1"]
[White "kingofthenil"]
[Black "NovikovaGalina"]
[Result "1-0"]
[WhiteElo "2771"]
[BlackElo "2414"]
[TimeControl "180+1"]
[EndTime "14:07:47 PDT"]
[Termination "kingofthenil won by checkmate"]

1. e4 {[%clk 0:02:49.3]} 1... e6 {[%clk 0:02:59.9]} 2. Nf3 {[%clk 0:02:09.6]}
2... d5 {[%clk 0:03:00.8]} 3. exd5 {[%clk 0:02:10.2]} 3... exd5 {[%clk
0:03:00.3]} 4. c4 {[%clk 0:02:11.1]} 4... d4 {[%clk 0:02:59.1]} 5. g3 {[%clk
0:02:09.7]} 5... Nc6 {[%clk 0:02:54.5]} 6. Bg2 {[%clk 0:01:55.6]} 6... Nf6
{[%clk 0:02:53.9]} 7. O-O {[%clk 0:01:54]} 7... Be7 {[%clk 0:02:54.5]} 8. d3
{[%clk 0:01:52.1]} 8... O-O {[%clk 0:02:55.1]} 9. Re1 {[%clk 0:01:52.6]} 9...
Bg4 {[%clk 0:02:52.5]} 10. h3 {[%clk 0:01:52.2]} 10... Bf5 {[%clk 0:02:51.7]}
11. Nh4 {[%clk 0:01:37.5]} 11... Be6 {[%clk 0:02:50.3]} 12. Rxe6 {[%clk
0:01:24.5]} 12... fxe6 {[%clk 0:02:49.8]} 13. Qe2 {[%clk 0:01:25.4]} 13... e5
{[%clk 0:02:46.1]} 14. Nd2 {[%clk 0:01:13]} 14... Bd6 {[%clk 0:02:42]} 15. Ne4
{[%clk 0:01:09.9]} 15... Qd7 {[%clk 0:02:36.6]} 16. Bd2 {[%clk 0:00:59.1]} 16...
b6 {[%clk 0:02:34.4]} 17. Rf1 {[%clk 0:00:50.2]} 17... Ne7 {[%clk 0:02:34.8]}
18. Nxf6+ {[%clk 0:00:49]} 18... gxf6 {[%clk 0:02:29.2]} 19. Bh6 {[%clk
0:00:46.8]} 19... Rfe8 {[%clk 0:02:21.1]} 20. Qh5 {[%clk 0:00:45.1]} 20... Rad8
{[%clk 0:01:51.6]} 21. g4 {[%clk 0:00:36.9]} 21... Qe6 {[%clk 0:01:34.4]} 22.
Nf5 {[%clk 0:00:33.2]} 22... Qf7 {[%clk 0:01:33.9]} 23. Nxe7+ {[%clk 0:00:28.3]}
23... Qxe7 {[%clk 0:01:31.9]} 24. Qf5 {[%clk 0:00:20.6]} 24... Kh8 {[%clk
0:01:26.3]} 25. g5 {[%clk 0:00:20.1]} 25... Qe6 {[%clk 0:01:04.8]} 26. Qxe6
{[%clk 0:00:16.3]} 26... Rxe6 {[%clk 0:01:05.7]} 27. Bd5 {[%clk 0:00:16.6]}
27... Ree8 {[%clk 0:01:00.7]} 28. gxf6 {[%clk 0:00:16.8]} 28... Bf8 {[%clk
0:01:01.3]} 29. f7 {[%clk 0:00:15.6]} 29... Re7 {[%clk 0:01:00.3]} 30. Bg5
{[%clk 0:00:15.5]} 30... Red7 {[%clk 0:01:00.4]} 31. Bxd8 {[%clk 0:00:14.6]}
31... Rxd8 {[%clk 0:01:01.3]} 32. Re1 {[%clk 0:00:14.2]} 32... Bg7 {[%clk
0:00:59.9]} 33. f4 {[%clk 0:00:14.4]} 33... Bf6 {[%clk 0:00:50.8]} 34. fxe5
{[%clk 0:00:14.1]} 34... Be7 {[%clk 0:00:50.1]} 35. Re4 {[%clk 0:00:13.2]} 35...
h5 {[%clk 0:00:49]} 36. Rf4 {[%clk 0:00:12.7]} 36... Kg7 {[%clk 0:00:48.4]} 37.
Rf5 {[%clk 0:00:12.1]} 37... Kg6 {[%clk 0:00:46.2]} 38. Be4 {[%clk 0:00:11.1]}
38... Kg7 {[%clk 0:00:43.7]} 39. e6 {[%clk 0:00:11.1]} 39... Rh8 {[%clk
0:00:39.6]} 40. Bf3 {[%clk 0:00:09.7]} 40... h4 {[%clk 0:00:34.8]} 41. Rf4
{[%clk 0:00:08.9]} 41... Bf6 {[%clk 0:00:24.2]} 42. Bd5 {[%clk 0:00:06.9]} 42...
c5 {[%clk 0:00:14.2]} 43. Rg4+ {[%clk 0:00:06.6]} 43... Kf8 {[%clk 0:00:14.7]}
44. Kh1 {[%clk 0:00:04.1]} 44... Ke7 {[%clk 0:00:14.7]} 45. Rg8 {[%clk 0:00:03]}
45... a6 {[%clk 0:00:04.5]} 46. f8=Q# {[%clk 0:00:03]} 1-0

[Event "Late-Titled-Tuesday-Blitz-September-05-2023"]
[Site "Chess.com"]
[Date "2023.09.05"]
[Round "1"]
[White "CrushingKings"]
[Black "copanchess"]
[Result "1/2-1/2"]
[WhiteElo "2527"]
[BlackElo "2160"]
[TimeControl "180+1"]
[EndTime "14:07:49 PDT"]
[Termination "Game drawn - insufficient material"]

1. Nf3 {[%clk 0:03:00.9]} 1... d5 {[%clk 0:02:57.1]} 2. g3 {[%clk 0:03:01]} 2...
g6 {[%clk 0:02:56.2]} 3. Bg2 {[%clk 0:03:01]} 3... Bg7 {[%clk 0:02:56.6]} 4. d4
{[%clk 0:03:01.7]} 4... Nf6 {[%clk 0:02:55]} 5. O-O {[%clk 0:03:02.3]} 5... O-O
{[%clk 0:02:55]} 6. c4 {[%clk 0:03:01.7]} 6... dxc4 {[%clk 0:02:55.6]} 7. Na3
{[%clk 0:03:00.9]} 7... c3 {[%clk 0:02:55.2]} 8. bxc3 {[%clk 0:03:00.8]} 8... c5
{[%clk 0:02:51.9]} 9. Bb2 {[%clk 0:02:59.3]} 9... Nc6 {[%clk 0:02:52.4]} 10. Nc4
{[%clk 0:02:57.5]} 10... Be6 {[%clk 0:02:24.7]} 11. Ne3 {[%clk 0:02:57.4]} 11...
Nd5 {[%clk 0:02:17]} 12. Nxd5 {[%clk 0:02:57.2]} 12... Bxd5 {[%clk 0:02:17.3]}
13. Re1 {[%clk 0:02:57.1]} 13... f5 {[%clk 0:02:13]} 14. e3 {[%clk 0:02:51.6]}
14... c4 {[%clk 0:02:09.3]} 15. a4 {[%clk 0:02:43.2]} 15... Na5 {[%clk
0:02:06.6]} 16. Ba3 {[%clk 0:02:42.7]} 16... Nb3 {[%clk 0:02:04.6]} 17. Ra2
{[%clk 0:02:40.4]} 17... Qd7 {[%clk 0:02:00.8]} 18. Nd2 {[%clk 0:02:38.3]} 18...
Bxg2 {[%clk 0:01:55.3]} 19. Kxg2 {[%clk 0:02:39.2]} 19... Qxa4 {[%clk
0:01:50.8]} 20. Kg1 {[%clk 0:02:25]} 20... Rfe8 {[%clk 0:01:43]} 21. Qc2 {[%clk
0:02:24.6]} 21... Qc6 {[%clk 0:01:14]} 22. Nxb3 {[%clk 0:02:24.1]} 22... cxb3
{[%clk 0:01:14.9]} 23. Qxb3+ {[%clk 0:02:24.9]} 23... Kh8 {[%clk 0:01:05.4]} 24.
Rb1 {[%clk 0:02:23.9]} 24... Rac8 {[%clk 0:00:58.2]} 25. Qxb7 {[%clk 0:02:17.1]}
25... Qxc3 {[%clk 0:00:51.7]} 26. Bxe7 {[%clk 0:02:05.8]} 26... Rc7 {[%clk
0:00:32.5]} 27. Qd5 {[%clk 0:01:33.5]} 27... Rcxe7 {[%clk 0:00:30.6]} 28. Rb3
{[%clk 0:01:28]} 28... Qe1+ {[%clk 0:00:25.6]} 29. Kg2 {[%clk 0:01:28.4]} 29...
Qd1 {[%clk 0:00:22.7]} 30. Rba3 {[%clk 0:01:24.6]} 30... h5 {[%clk 0:00:19.4]}
31. h4 {[%clk 0:01:23.4]} 31... Qg4 {[%clk 0:00:17.7]} 32. Rxa7 {[%clk
0:01:22.4]} 32... Rxa7 {[%clk 0:00:17.5]} 33. Rxa7 {[%clk 0:01:22.2]} 33... Qe4+
{[%clk 0:00:12.4]} 34. Qxe4 {[%clk 0:01:22.7]} 34... fxe4 {[%clk 0:00:12]} 35.
Ra6 {[%clk 0:01:13.1]} 35... Kh7 {[%clk 0:00:11.1]} 36. Kf1 {[%clk 0:01:13.4]}
36... Rc8 {[%clk 0:00:10.5]} 37. Re6 {[%clk 0:01:13.6]} 37... Rc1+ {[%clk
0:00:09.5]} 38. Kg2 {[%clk 0:01:14.2]} 38... Rc2 {[%clk 0:00:09]} 39. Rxe4
{[%clk 0:01:14.8]} 39... Bh6 {[%clk 0:00:08.6]} 40. Kf3 {[%clk 0:01:15.1]} 40...
Ra2 {[%clk 0:00:07.7]} 41. Re7+ {[%clk 0:01:15.4]} 41... Bg7 {[%clk 0:00:06.9]}
42. Rf7 {[%clk 0:01:15.7]} 42... Kg8 {[%clk 0:00:06.7]} 43. Rf4 {[%clk
0:01:15.6]} 43... Ra1 {[%clk 0:00:06.4]} 44. Ke4 {[%clk 0:01:15.3]} 44... Ra2
{[%clk 0:00:06.5]} 45. Kd5 {[%clk 0:01:10.4]} 45... Rb2 {[%clk 0:00:06.1]} 46.
Kc4 {[%clk 0:01:07.9]} 46... Ra2 {[%clk 0:00:06.3]} 47. d5 {[%clk 0:01:06.4]}
47... Ra4+ {[%clk 0:00:06.3]} 48. Kb5 {[%clk 0:01:05]} 48... Rxf4 {[%clk
0:00:07.2]} 49. gxf4 {[%clk 0:01:02.3]} 49... Kf8 {[%clk 0:00:08.1]} 50. Kc6
{[%clk 0:01:00.2]} 50... Ke8 {[%clk 0:00:08.7]} 51. e4 {[%clk 0:01:00.8]} 51...
Kd8 {[%clk 0:00:08.4]} 52. e5 {[%clk 0:01:01.3]} 52... Bf8 {[%clk 0:00:07.9]}
53. d6 {[%clk 0:01:01.6]} 53... Bg7 {[%clk 0:00:07.5]} 54. Kd5 {[%clk
0:01:01.4]} 54... Kd7 {[%clk 0:00:07.1]} 55. e6+ {[%clk 0:00:56.9]} 55... Kd8
{[%clk 0:00:07]} 56. f5 {[%clk 0:00:46.6]} 56... gxf5 {[%clk 0:00:06.3]} 57. d7
{[%clk 0:00:45.2]} 57... Bf6 {[%clk 0:00:06.3]} 58. f3 {[%clk 0:00:45.3]} 58...
Bxh4 {[%clk 0:00:06.6]} 59. Ke5 {[%clk 0:00:46]} 59... Be7 {[%clk 0:00:06.6]}
60. Kxf5 {[%clk 0:00:46.3]} 60... Kc7 {[%clk 0:00:06.6]} 61. Kf4 {[%clk
0:00:43.2]} 61... Kd6 {[%clk 0:00:07.1]} 62. Kg3 {[%clk 0:00:42.6]} 62... Kxe6
{[%clk 0:00:07.7]} 63. d8=Q {[%clk 0:00:42.3]} 63... Bxd8 {[%clk 0:00:07.3]} 64.
Kh3 {[%clk 0:00:43]} 64... h4 {[%clk 0:00:07.7]} 65. f4 {[%clk 0:00:43.7]} 65...
Kf5 {[%clk 0:00:08.6]} 66. Kg2 {[%clk 0:00:43.8]} 66... Kxf4 {[%clk 0:00:08.9]}
67. Kh2 {[%clk 0:00:44.7]} 67... Kf3 {[%clk 0:00:09.2]} 68. Kh1 {[%clk
0:00:45.6]} 68... Kf2 {[%clk 0:00:09.8]} 69. Kh2 {[%clk 0:00:46]} 69... h3
{[%clk 0:00:10.7]} 70. Kh1 {[%clk 0:00:46.9]} 70... Be7 {[%clk 0:00:10.5]} 71.
Kh2 {[%clk 0:00:47.7]} 71... Bg5 {[%clk 0:00:10.5]} 72. Kxh3 {[%clk 0:00:48.6]}
1/2-1/2

[Event "Late-Titled-Tuesday-Blitz-September-05-2023"]
[Site "Chess.com"]
[Date "2023.09.05"]
[Round "1"]
[White "YEIKO2017"]
[Black "Fonsofan"]
[Result "1/2-1/2"]
[WhiteElo "2419"]
[BlackElo "2737"]
[TimeControl "180+1"]
[EndTime "14:08:13 PDT"]
[Termination "Game drawn - insufficient material"]

1. e4 {[%clk 0:03:00.2]} 1... c5 {[%clk 0:02:52.2]} 2. Nf3 {[%clk 0:03:00.1]}
2... Nc6 {[%clk 0:02:49.3]} 3. Bb5 {[%clk 0:02:58.3]} 3... Nf6 {[%clk
0:02:46.7]} 4. Nc3 {[%clk 0:02:57]} 4... g6 {[%clk 0:02:46.9]} 5. e5 {[%clk
0:02:52.1]} 5... Ng4 {[%clk 0:02:45.9]} 6. Bxc6 {[%clk 0:02:49.9]} 6... dxc6
{[%clk 0:02:46.8]} 7. h3 {[%clk 0:02:50]} 7... Nh6 {[%clk 0:02:47.1]} 8. g4
{[%clk 0:02:50.7]} 8... Bg7 {[%clk 0:02:47.2]} 9. d3 {[%clk 0:02:51]} 9... O-O
{[%clk 0:02:46.7]} 10. Bf4 {[%clk 0:02:35.4]} 10... f6 {[%clk 0:02:39.4]} 11.
Qd2 {[%clk 0:02:31.8]} 11... Nf7 {[%clk 0:02:38]} 12. O-O-O {[%clk 0:02:18.7]}
12... Be6 {[%clk 0:02:36.7]} 13. Kb1 {[%clk 0:02:13.3]} 13... Bd5 {[%clk
0:02:25.5]} 14. Nxd5 {[%clk 0:01:50.4]} 14... Qxd5 {[%clk 0:02:26.4]} 15. exf6
{[%clk 0:01:48.7]} 15... exf6 {[%clk 0:02:21.3]} 16. Qe2 {[%clk 0:01:39.5]}
16... Rae8 {[%clk 0:02:17.9]} 17. Be3 {[%clk 0:01:39.7]} 17... f5 {[%clk
0:02:17.9]} 18. gxf5 {[%clk 0:01:37.7]} 18... Qxf5 {[%clk 0:02:17.6]} 19. Nd2
{[%clk 0:01:33.8]} 19... Qf6 {[%clk 0:02:05.4]} 20. c3 {[%clk 0:01:32.7]} 20...
Nd6 {[%clk 0:02:03.3]} 21. Qg4 {[%clk 0:01:23.4]} 21... b6 {[%clk 0:01:23.7]}
22. Ne4 {[%clk 0:01:20.9]} 22... Nxe4 {[%clk 0:01:24.3]} 23. dxe4 {[%clk
0:01:21.4]} 23... Qf3 {[%clk 0:01:24.9]} 24. Qxf3 {[%clk 0:01:17.2]} 24... Rxf3
{[%clk 0:01:25.8]} 25. Rd7 {[%clk 0:01:17.3]} 25... Rf7 {[%clk 0:01:11.6]} 26.
Rxf7 {[%clk 0:01:12.6]} 26... Kxf7 {[%clk 0:01:12.5]} 27. f3 {[%clk 0:01:12.9]}
27... Ke6 {[%clk 0:01:13.1]} 28. Rd1 {[%clk 0:01:11.8]} 28... Rf8 {[%clk
0:01:12.2]} 29. Rf1 {[%clk 0:01:06.4]} 29... c4 {[%clk 0:00:41.6]} 30. Kc2
{[%clk 0:01:05.5]} 30... Ke7 {[%clk 0:00:39.4]} 31. Kd2 {[%clk 0:01:02.3]} 31...
Ra8 {[%clk 0:00:18.9]} 32. Ke2 {[%clk 0:01:00.2]} 32... b5 {[%clk 0:00:19.3]}
33. Bc5+ {[%clk 0:00:58.9]} 33... Ke8 {[%clk 0:00:18.7]} 34. f4 {[%clk
0:00:55.3]} 34... a5 {[%clk 0:00:18.4]} 35. e5 {[%clk 0:00:55.4]} 35... Rd8
{[%clk 0:00:16]} 36. Kf3 {[%clk 0:00:44.5]} 36... Kf7 {[%clk 0:00:15.7]} 37. Ke4
{[%clk 0:00:43.1]} 37... Rd2 {[%clk 0:00:14.7]} 38. Rf2 {[%clk 0:00:40.8]} 38...
Rxf2 {[%clk 0:00:11]} 39. Bxf2 {[%clk 0:00:41.7]} 39... Ke6 {[%clk 0:00:11.3]}
40. Bb6 {[%clk 0:00:39]} 40... a4 {[%clk 0:00:09.8]} 41. Be3 {[%clk 0:00:35.8]}
41... Bf8 {[%clk 0:00:09.8]} 42. Bf2 {[%clk 0:00:30.7]} 42... a3 {[%clk
0:00:10.2]} 43. bxa3 {[%clk 0:00:29.6]} 43... Bxa3 {[%clk 0:00:11.1]} 44. Kd4
{[%clk 0:00:26.8]} 44... Be7 {[%clk 0:00:07.6]} 45. a4 {[%clk 0:00:24.3]} 45...
bxa4 {[%clk 0:00:06.5]} 46. Kxc4 {[%clk 0:00:25.2]} 46... a3 {[%clk 0:00:06.2]}
47. Kb3 {[%clk 0:00:24.8]} 47... Kd5 {[%clk 0:00:06.5]} 48. Be3 {[%clk 0:00:19]}
48... Ke4 {[%clk 0:00:07]} 49. Bc1 {[%clk 0:00:19.5]} 49... h6 {[%clk
0:00:06.7]} 50. Bxa3 {[%clk 0:00:19.5]} 50... c5 {[%clk 0:00:06.2]} 51. Kc4
{[%clk 0:00:14.2]} 51... Kxf4 {[%clk 0:00:04.8]} 52. Bxc5 {[%clk 0:00:15.1]}
52... Bxc5 {[%clk 0:00:03.9]} 53. Kxc5 {[%clk 0:00:16]} 53... Kxe5 {[%clk
0:00:04.3]} 54. Kb5 {[%clk 0:00:14.1]} 54... g5 {[%clk 0:00:05.2]} 55. c4 {[%clk
0:00:14.2]} 55... Kd6 {[%clk 0:00:04.4]} 56. Kb6 {[%clk 0:00:13.7]} 56... Kd7
{[%clk 0:00:04.8]} 57. Kb7 {[%clk 0:00:13.5]} 57... Kd6 {[%clk 0:00:05.3]} 58.
Kb6 {[%clk 0:00:13.8]} 58... Kd7 {[%clk 0:00:05.9]} 59. c5 {[%clk 0:00:12.2]}
59... Kc8 {[%clk 0:00:04.1]} 60. Kc6 {[%clk 0:00:12.6]} 60... h5 {[%clk
0:00:04.7]} 61. Kd5 {[%clk 0:00:13.1]} 61... g4 {[%clk 0:00:05.3]} 62. hxg4
{[%clk 0:00:12.5]} 62... hxg4 {[%clk 0:00:06.2]} 63. Ke4 {[%clk 0:00:12.5]}
63... Kc7 {[%clk 0:00:06.6]} 64. Kf4 {[%clk 0:00:12.9]} 64... Kc6 {[%clk
0:00:07.5]} 65. Kxg4 {[%clk 0:00:13.7]} 65... Kxc5 {[%clk 0:00:08.4]} 1/2-1/2

[Event "Late-Titled-Tuesday-Blitz-September-05-2023"]
[Site "Chess.com"]
[Date "2023.09.05"]
[Round "1"]
[White "vanyakuba"]
[Black "Aradhya2000"]
[Result "0-1"]
[WhiteElo "2404"]
[BlackElo "2726"]
[TimeControl "180+1"]
[EndTime "14:08:20 PDT"]
[Termination "Aradhya2000 won by resignation"]

1. e4 {[%clk 0:03:00.9]} 1... e5 {[%clk 0:03:00.1]} 2. Nf3 {[%clk 0:03:00.5]}
2... Nf6 {[%clk 0:02:59.9]} 3. Nc3 {[%clk 0:03:00.8]} 3... Nc6 {[%clk
0:02:59.5]} 4. g3 {[%clk 0:03:01.4]} 4... d5 {[%clk 0:02:57.4]} 5. exd5 {[%clk
0:03:02.3]} 5... Nxd5 {[%clk 0:02:58.1]} 6. Bg2 {[%clk 0:03:02.7]} 6... Nxc3
{[%clk 0:02:58.3]} 7. bxc3 {[%clk 0:03:03.6]} 7... Bd6 {[%clk 0:02:58.1]} 8. O-O
{[%clk 0:02:58.8]} 8... O-O {[%clk 0:02:58.5]} 9. d3 {[%clk 0:02:54.7]} 9... Rb8
{[%clk 0:02:53.3]} 10. h3 {[%clk 0:02:49.1]} 10... h6 {[%clk 0:02:53]} 11. Re1
{[%clk 0:02:35.1]} 11... Bf5 {[%clk 0:02:51.2]} 12. Rb1 {[%clk 0:02:32.7]} 12...
Re8 {[%clk 0:02:48.4]} 13. Nh4 {[%clk 0:02:20.5]} 13... Be6 {[%clk 0:02:44.9]}
14. a4 {[%clk 0:02:16]} 14... Qd7 {[%clk 0:02:43.1]} 15. Kh2 {[%clk 0:02:15.2]}
15... b6 {[%clk 0:02:30.5]} 16. Qh5 {[%clk 0:01:57.2]} 16... Bf8 {[%clk
0:02:28.5]} 17. f4 {[%clk 0:01:20]} 17... exf4 {[%clk 0:01:56.4]} 18. Bxf4
{[%clk 0:01:20.9]} 18... Ne7 {[%clk 0:01:56.9]} 19. c4 {[%clk 0:01:01.3]} 19...
Rbd8 {[%clk 0:01:56.3]} 20. Be5 {[%clk 0:00:59.1]} 20... Nc6 {[%clk 0:01:52.4]}
21. Bc3 {[%clk 0:00:57.2]} 21... Nd4 {[%clk 0:01:51.9]} 22. Qd1 {[%clk
0:00:29.9]} 22... Qxa4 {[%clk 0:01:46.1]} 23. Rc1 {[%clk 0:00:19.1]} 23... a5
{[%clk 0:01:41.4]} 24. Nf3 {[%clk 0:00:18]} 24... Bc5 {[%clk 0:01:31.8]} 25. Ne5
{[%clk 0:00:16.1]} 25... Rd6 {[%clk 0:01:05.3]} 26. Qh5 {[%clk 0:00:04.9]} 26...
Nxc2 {[%clk 0:01:03.4]} 27. Re2 {[%clk 0:00:04.3]} 27... Nd4 {[%clk 0:01:02.4]}
28. Ree1 {[%clk 0:00:04.8]} 28... Nb3 {[%clk 0:01:01]} 29. Rcd1 {[%clk
0:00:03.8]} 29... Bd4 {[%clk 0:00:58.7]} 30. Bxd4 {[%clk 0:00:03.6]} 30... Nxd4
{[%clk 0:00:57.4]} 31. Ng4 {[%clk 0:00:03.7]} 31... Bxg4 {[%clk 0:00:56.1]} 32.
Rxe8+ {[%clk 0:00:02.8]} 32... Qxe8 {[%clk 0:00:55.8]} 33. Qxg4 {[%clk
0:00:03.7]} 33... c5 {[%clk 0:00:17.3]} 34. Be4 {[%clk 0:00:03.7]} 34... f5
{[%clk 0:00:15.5]} 35. Qf4 {[%clk 0:00:03.7]} 35... Qe6 {[%clk 0:00:07.8]} 36.
Bg2 {[%clk 0:00:02.4]} 36... Kh7 {[%clk 0:00:07.6]} 37. Rf1 {[%clk 0:00:02.9]}
37... Qf6 {[%clk 0:00:07.4]} 38. h4 {[%clk 0:00:02.7]} 38... a4 {[%clk
0:00:07.5]} 39. Bh3 {[%clk 0:00:02.9]} 39... a3 {[%clk 0:00:07.8]} 40. g4 {[%clk
0:00:02.5]} 40... a2 {[%clk 0:00:07.6]} 41. g5 {[%clk 0:00:01.8]} 41... Qe6
{[%clk 0:00:07]} 42. g6+ {[%clk 0:00:02.2]} 42... Kxg6 {[%clk 0:00:06.9]} 43.
Kh1 {[%clk 0:00:02.6]} 43... Kh7 {[%clk 0:00:06.6]} 44. Rg1 {[%clk 0:00:03.2]}
44... Qf6 {[%clk 0:00:06.7]} 45. Qg3 {[%clk 0:00:03.6]} 45... Ne2 {[%clk
0:00:06.7]} 46. Qf3 {[%clk 0:00:03.6]} 46... Nxg1 {[%clk 0:00:06.4]} 47. Bxf5+
{[%clk 0:00:04.5]} 47... Kg8 {[%clk 0:00:05.9]} 48. Qa8+ {[%clk 0:00:04.6]}
48... Rd8 {[%clk 0:00:05.7]} 49. Qe4 {[%clk 0:00:05.3]} 49... Nf3 {[%clk
0:00:05.5]} 50. Qxf3 {[%clk 0:00:05.3]} 50... Qxh4+ {[%clk 0:00:05.6]} 51. Kg2
{[%clk 0:00:05.4]} 51... Qg5+ {[%clk 0:00:05.9]} 52. Kh3 {[%clk 0:00:05.3]}
52... a1=Q {[%clk 0:00:06.8]} 53. Be6+ {[%clk 0:00:05.3]} 53... Kh8 {[%clk
0:00:06.3]} 54. Bg4 {[%clk 0:00:04.1]} 54... Qaf6 {[%clk 0:00:06.8]} 55. Qg3
{[%clk 0:00:03]} 55... Rxd3 {[%clk 0:00:06]} 56. Qxd3 {[%clk 0:00:02.6]} 56...
Qh4+ {[%clk 0:00:06.6]} 57. Kg2 {[%clk 0:00:03.3]} 57... Qxg4+ {[%clk
0:00:07.2]} 58. Kh2 {[%clk 0:00:03.6]} 58... Qf2+ {[%clk 0:00:07.9]} 0-1

[Event "Late-Titled-Tuesday-Blitz-September-05-2023"]
[Site "Chess.com"]
[Date "2023.09.05"]
[Round "1"]
[White "JesseFebruary"]
[Black "whitemirrorninja"]
[Result "0-1"]
[WhiteElo "1947"]
[BlackElo "2513"]
[TimeControl "180+1"]
[EndTime "14:08:22 PDT"]
[Termination "whitemirrorninja won by checkmate"]

1. d4 {[%clk 0:02:59.9]} 1... g6 {[%clk 0:02:57.7]} 2. Nf3 {[%clk 0:02:58.4]}
2... Bg7 {[%clk 0:02:57.7]} 3. Bf4 {[%clk 0:02:57.2]} 3... Nf6 {[%clk
0:02:54.2]} 4. Nbd2 {[%clk 0:02:56]} 4... b6 {[%clk 0:02:52.9]} 5. e4 {[%clk
0:02:50.6]} 5... Bb7 {[%clk 0:02:51.3]} 6. Bd3 {[%clk 0:02:51.2]} 6... d5 {[%clk
0:02:46.6]} 7. e5 {[%clk 0:02:45.6]} 7... Ne4 {[%clk 0:02:42.9]} 8. Qe2 {[%clk
0:02:41]} 8... Nxd2 {[%clk 0:02:40.1]} 9. Qxd2 {[%clk 0:02:36.4]} 9... c5 {[%clk
0:02:38.1]} 10. c3 {[%clk 0:02:36.6]} 10... Nc6 {[%clk 0:02:36]} 11. O-O {[%clk
0:02:34.5]} 11... O-O {[%clk 0:02:34.7]} 12. Bh6 {[%clk 0:02:31.8]} 12... Rc8
{[%clk 0:02:32.7]} 13. Bxg7 {[%clk 0:02:31.2]} 13... Kxg7 {[%clk 0:02:33.4]} 14.
Rfe1 {[%clk 0:02:21.5]} 14... e6 {[%clk 0:02:33.3]} 15. h4 {[%clk 0:02:08.6]}
15... h5 {[%clk 0:02:28.3]} 16. Rac1 {[%clk 0:01:58.8]} 16... Qe7 {[%clk
0:02:27.1]} 17. Bb1 {[%clk 0:01:57]} 17... Na5 {[%clk 0:02:22.5]} 18. Qf4 {[%clk
0:01:54.7]} 18... Rc7 {[%clk 0:02:18.6]} 19. dxc5 {[%clk 0:00:59.1]} 19... bxc5
{[%clk 0:02:15.8]} 20. g4 {[%clk 0:00:54.8]} 20... hxg4 {[%clk 0:02:13]} 21.
Qxg4 {[%clk 0:00:55.7]} 21... Rh8 {[%clk 0:02:11.1]} 22. Ng5 {[%clk 0:00:55.8]}
22... Bc8 {[%clk 0:01:57.3]} 23. Re3 {[%clk 0:00:55]} 23... Nc6 {[%clk
0:01:51.2]} 24. Rce1 {[%clk 0:00:51.6]} 24... Rb7 {[%clk 0:01:30.4]} 25. Rf3
{[%clk 0:00:50.7]} 25... Nd8 {[%clk 0:01:31]} 26. Nxf7 {[%clk 0:00:45.4]} 26...
Nxf7 {[%clk 0:01:28.3]} 27. Bxg6 {[%clk 0:00:40.9]} 27... Rxh4 {[%clk
0:01:20.4]} 28. Qg3 {[%clk 0:00:33]} 28... Qg5 {[%clk 0:00:39.2]} 29. Rxf7+
{[%clk 0:00:26.5]} 29... Kxg6 {[%clk 0:00:38.6]} 30. Rf6+ {[%clk 0:00:18]} 30...
Kh5 {[%clk 0:00:37.9]} 31. Qxg5+ {[%clk 0:00:09.8]} 31... Kxg5 {[%clk
0:00:37.5]} 32. Kg2 {[%clk 0:00:08.3]} 32... Rxb2 {[%clk 0:00:31.9]} 33. Kf3
{[%clk 0:00:08.5]} 33... Rh3+ {[%clk 0:00:27.7]} 34. Kg2 {[%clk 0:00:07.7]}
34... Rh4 {[%clk 0:00:17.3]} 35. Kf3 {[%clk 0:00:07.5]} 35... Rh3+ {[%clk
0:00:12]} 36. Kg2 {[%clk 0:00:07.8]} 36... Rxc3 {[%clk 0:00:12.3]} 37. Rh1
{[%clk 0:00:07.8]} 37... d4 {[%clk 0:00:10.1]} 38. Rhh6 {[%clk 0:00:07.6]} 38...
Bb7+ {[%clk 0:00:10.3]} 39. Kh2 {[%clk 0:00:02.9]} 39... Rxf2+ {[%clk
0:00:10.1]} 40. Rxf2 {[%clk 0:00:02]} 40... Kxh6 {[%clk 0:00:10.3]} 41. Rf6+
{[%clk 0:00:01.8]} 41... Kg5 {[%clk 0:00:10.5]} 42. Rxe6 {[%clk 0:00:02.7]}
42... Kf5 {[%clk 0:00:08.8]} 43. Re7 {[%clk 0:00:03.3]} 43... Bd5 {[%clk
0:00:07.4]} 44. Re8 {[%clk 0:00:02.7]} 44... Rc2+ {[%clk 0:00:07.1]} 45. Kg3
{[%clk 0:00:02.8]} 45... d3 {[%clk 0:00:07.8]} 46. e6 {[%clk 0:00:02.4]} 46...
Rg2+ {[%clk 0:00:07.5]} 47. Kh3 {[%clk 0:00:02.2]} 47... Re2 {[%clk 0:00:05.6]}
48. e7 {[%clk 0:00:02.2]} 48... Ke6 {[%clk 0:00:04.5]} 49. Rh8 {[%clk
0:00:01.4]} 49... Kxe7 {[%clk 0:00:04.4]} 50. Rh5 {[%clk 0:00:02.3]} 50... Be6+
{[%clk 0:00:04.1]} 51. Kh4 {[%clk 0:00:01.7]} 51... d2 {[%clk 0:00:05]} 52. Kg3
{[%clk 0:00:02.6]} 52... Re4 {[%clk 0:00:05.2]} 53. Rxc5 {[%clk 0:00:02.4]}
53... Rd4 {[%clk 0:00:06.1]} 54. Kf3 {[%clk 0:00:03.1]} 54... d1=Q+ {[%clk
0:00:06.6]} 55. Kg3 {[%clk 0:00:02.4]} 55... Qd3+ {[%clk 0:00:06.9]} 56. Kh2
{[%clk 0:00:02.6]} 56... Qe2+ {[%clk 0:00:07]} 57. Kg1 {[%clk 0:00:03.5]} 57...
Rd1# {[%clk 0:00:07.9]} 0-1